Workbook

Sheet Лист1
A1: Школа | C1: МБОУ " Школа №111" | G1: Утвердил: | H1: должность | I1: Заведующая столовой
A2: Форма ежедневного меню приготавливаемых блюд | H2: фамилия | I2: Аглиева Л.В.
A3: Возрастная категория | F3: 7-11 лет | H3: дата | J3: Май | K3: 2025
I4: день | J4: месяц | K4: год
A5: Неделя | B5: День недели | C5: Прием пищи | D5: Раздел меню | E5: № рецептуры | F5: Блюда | G5: Вес блюда, г | H5: Цена | I5: Калорийность | J5: Белки | K5: Жиры | L5: Углеводы
A6: 1 | B6: 1 | C6: Завтрак | D6: гор.блюдо | E6: ТТК | F6: Мясо болоньезе | G6: 90 | I6: 165 | J6: 9.116 | K6: 10.744 | L6: 7.592
D7: гор.блюдо | E7: ТТК от 2016г | F7: Спагетти отварные | G7: 150 | I7: 209 | J7: 5.601 | K7: 4.740 | L7: 35.899
D8: гор.напиток | E8: ТТК от 2021г | F8: Чай с сахаром, лимоном | G8: 213 | I8: 34 | J8: 0.066 | K8: 0.010 | L8: 8.139
D9: хлеб | F9: Хлеб пшеничный | G9: 20 | I9: 47 | J9: 1.520 | K9: 0.160 | L9: 9.840
D10: фрукты | E10: №338 | F10: Плоды и ягоды свежие (яблоки) | G10: 100 | I10: 47 | J10: 0.400 | K10: 0.400 | L10: 9.800
D13: итого | G13: =SUM(G6:G12) -> 573 | H13: 69.43 | I13: =SUM(I5:I12) -> 502 | J13: =SUM(J5:J12) -> 16.703 | K13: =SUM(K5:K12) -> 16.054 | L13: =SUM(L5:L12) -> 71.270
A14: =A6 -> 1 | B14: =B6 -> 1 | C14: Обед | D14: закуска
D15: 1 блюдо
D16: 2 блюдо
D17: гарнир
D18: напиток
D19: хлеб бел.
D20: хлеб черн.
D23: итого | G23: =SUM(G14:G22) -> 0 | H23: =SUM(H14:H22) -> 0 | I23: =SUM(I14:I22) -> 0 | J23: =SUM(J14:J22) -> 0 | K23: 0 | L23: 0
A24: =A6 -> 1 | B24: =B6 -> 1 | C24: Итого за день: | G24: =G13+G23 -> 573 | H24: =H13+H23 -> 69.43 | I24: =I13+I23 -> 502 | J24: =J13+J23 -> 16.703 | K24: 16.054 | L24: 71.27
A25: 1 | B25: 2 | C25: Завтрак | D25: гор.блюдо | E25: ТТК №2382 от 7.12.2023 | F25: Жаркое по-домашнему | G25: 190 | I25: 377 | J25: 16.516 | K25: 16.800 | L25: 39.880
D26: гор.блюдо
D27: гор.напиток | E27: ТТК от 2021г | F27: Чай с сахаром, лимоном | G27: 213 | I27: 34 | J27: 0.066 | K27: 0.010 | L27: 8.139
D28: хлеб | F28: Хлеб ржано-пшеничный/ Хлеб пшеничный | G28: 40 | I28: 91 | J28: 2.520 | K28: 0.360 | L28: 18.840
D29: закуска | E29: №45/2015 Дели | F29: Салат из белокачанной капусты | G29: 60 | I29: 54 | J29: 0.961 | K29: 3.051 | L29: 5.513
D33: итого | G33: =SUM(G25:G32) -> 503 | H33: 69.43 | I33: =SUM(I25:I32) -> 556 | J33: =SUM(J25:J32) -> 20.063 | K33: =SUM(K25:K32) -> 20.221 | L33: =SUM(L25:L32) -> 72.372
A34: =A25 -> 1 | B34: =B25 -> 2 | C34: Обед | D34: закуска
D35: 1 блюдо
D36: 2 блюдо
D37: гарнир
D38: напиток
D39: хлеб бел.
D40: хлеб черн.
D43: итого | G43: =SUM(G34:G42) -> 0 | H43: =SUM(H34:H42) -> 0 | I43: =SUM(I34:I42) -> 0 | J43: =SUM(J34:J42) -> 0 | K43: 0 | L43: 0
A44: =A25 -> 1 | B44: =B25 -> 2 | C44: Итого за день: | G44: =G33+G43 -> 503 | H44: =H33+H43 -> 69.43 | I44: =I33+I43 -> 556 | J44: =J33+J43 -> 20.063 | K44: 20.221 | L44: 72.372
A45: 1 | B45: 3 | C45: Завтрак | D45: гор.блюдо | E45: №243/2015 Дели | F45: Сосиски отварные с соусом для запекания, с овощными палочками из огурцов | G45: 120 | I45: 170 | J45: 10.120 | K45: 9.760 | L45: 10.520
D46: гор.блюдо | E46: №309/2015г Дели | F46: Макаронные изделия отварные | G46: 150 | I46: 212 | J46: 5.602 | K46: 5.068 | L46: 35.906
D47: гор.напиток | E47: ТТК от 2021г | F47: Чай с сахаром | G47: 208 | I47: 32 | J47: 0.021 | K47: 0.005 | L47: 7.989
D48: хлеб | F48: Хлеб ржано-пшеничный | G48: 22 | I48: 48 | J48: 1.100 | K48: 0.220 | L48: 9.900
D52: итого | G52: =SUM(G45:G51) -> 500 | H52: 69.43 | I52: =SUM(I45:I51) -> 462 | J52: =SUM(J45:J51) -> 16.843 | K52: =SUM(K45:K51) -> 15.053 | L52: =SUM(L45:L51) -> 64.315
A53: =A45 -> 1 | B53: =B45 -> 3 | C53: Обед | D53: закуска
D54: 1 блюдо
D55: 2 блюдо
D56: гарнир
D57: напиток
D58: хлеб бел.
D59: хлеб черн.
D62: итого | G62: =SUM(G53:G61) -> 0 | H62: =SUM(H53:H61) -> 0 | I62: =SUM(I53:I61) -> 0 | J62: =SUM(J53:J61) -> 0 | K62: 0 | L62: 0
A63: =A45 -> 1 | B63: =B45 -> 3 | C63: Итого за день: | G63: =G52+G62 -> 500 | H63: =H52+H62 -> 69.43 | I63: =I52+I62 -> 462 | J63: =J52+J62 -> 16.843 | K63: 15.053 | L63: 64.315
A64: 1 | B64: 4 | C64: Завтрак | D64: гор.блюдо | E64: ТТК 2021г | F64: Плов с говядиной | G64: 190 | I64: 320 | J64: 13.540 | K64: 13.983 | L64: 34.950
D65: гор.блюдо
D66: гор.напиток | E66: ТТК от 2021г | F66: Чай с сахаром, лимоном | G66: 213 | I66: 34 | J66: 0.066 | K66: 0.010 | L66: 8.139
D67: хлеб | F67: Хлеб ржано-пшеничный/ Хлеб пшеничный | G67: 40 | I67: 91 | J67: 2.520 | K67: 0.360 | L67: 18.840
D68: закуска | E68: ТТК 2013г. | F68: Салат из белокочанной капусты со свежими огурцами | G68: 60 | I68: 66 | J68: 0.752 | K68: 6.049 | L68: 1.978
D71: итого | G71: =SUM(G64:G70) -> 503 | H71: 69.43 | I71: =SUM(I64:I70) -> 511 | J71: =SUM(J64:J70) -> 16.878 | K71: =SUM(K64:K70) -> 20.402 | L71: =SUM(L64:L70) -> 63.907
A72: =A64 -> 1 | B72: =B64 -> 4 | C72: Обед | D72: закуска
D73: 1 блюдо
D74: 2 блюдо
D75: гарнир
D76: напиток
D77: хлеб бел.
D78: хлеб черн.
D81: итого | G81: =SUM(G72:G80) -> 0 | H81: =SUM(H72:H80) -> 0 | I81: =SUM(I72:I80) -> 0 | J81: =SUM(J72:J80) -> 0 | K81: 0 | L81: 0
A82: =A64 -> 1 | B82: =B64 -> 4 | C82: Итого за день: | G82: =G71+G81 -> 503 | H82: =H71+H81 -> 69.43 | I82: =I71+I81 -> 511 | J82: =J71+J81 -> 16.878 | K82: 20.402 | L82: 63.907
A83: 1 | B83: 5 | C83: Завтрак | D83: гор.блюдо | E83: ТТК 2025 г | F83: Наггетсы куриные с овощами натуральными свежими (помидорами) | G83: 120 | I83: 178 | J83: 13.088 | K83: 9.401 | L83: 10.081
D84: гор.блюдо | E84: ТТК №3150 от 25.03.2025 | F84: Каша гречневая с овощами | G84: 150 | I84: 251 | J84: 5.450 | K84: 7.000 | L84: 41.525
D85: гор.напиток | E85: ТТК от 2021г | F85: Чай с сахаром | G85: 208 | I85: 32 | J85: 0.021 | K85: 0.005 | L85: 7.989
D86: хлеб | F86: Хлеб ржано-пшеничный | G86: 22 | I86: 48 | J86: 1.100 | K86: 0.220 | L86: 9.900
D90: итого | G90: =SUM(G83:G89) -> 500 | H90: 69.43 | I90: =SUM(I83:I89) -> 509 | J90: =SUM(J83:J89) -> 19.659 | K90: 16.626 | L90: 69.495
A91: =A83 -> 1 | B91: =B83 -> 5 | C91: Обед | D91: закуска
D92: 1 блюдо
D93: 2 блюдо
D94: гарнир
D95: напиток
D96: хлеб бел.
D97: хлеб черн.
D100: итого | G100: =SUM(G91:G99) -> 0 | H100: =SUM(H91:H99) -> 0 | I100: =SUM(I91:I99) -> 0 | J100: =SUM(J91:J99) -> 0 | K100: 0 | L100: 0
A101: =A83 -> 1 | B101: =B83 -> 5 | C101: Итого за день: | G101: =G90+G100 -> 500 | H101: =H90+H100 -> 69.43 | I101: =I90+I100 -> 509 | J101: =J90+J100 -> 19.659 | K101: 16.626 | L101: 69.495
A102: 1 | B102: 6 | C102: Завтрак | D102: гор.блюдо | E102: ТТК 2015г | F102: Пельмени "Для умников и умниц" отварные с маслом | G102: 165 | I102: 365 | J102: 18.181 | K102: 14.944 | L102: 39.291
D103: гор.блюдо
D104: гор.напиток | E104: ТТК от 2021г | F104: Чай с сахаром, лимоном | G104: 213 | I104: 34 | J104: 0.066 | K104: 0.010 | L104: 8.139
D105: хлеб | F105: Хлеб ржано-пшеничный | G105: 22 | I105: 48 | J105: 1.100 | K105: 0.220 | L105: 9.900
D106: фрукты | E106: №338 | F106: Плоды и ягоды свежие (яблоки) | G106: 100 | I106: 47 | J106: 0.400 | K106: 0.400 | L106: 9.800
D109: итого | G109: =SUM(G102:G108) -> 500 | H109: 69.43 | I109: =SUM(I102:I108) -> 494 | J109: =SUM(J102:J108) -> 19.747 | K109: =SUM(K102:K108) -> 15.574 | L109: =SUM(L102:L108) -> 67.130
A110: =A102 -> 1 | B110: 6 | C110: Обед | D110: закуска
D111: 1 блюдо
D112: 2 блюдо
D113: гарнир
D114: напиток
D115: хлеб бел.
D116: хлеб черн.
D119: итого | G119: =SUM(G110:G118) -> 0 | H119: =SUM(H110:H118) -> 0 | I119: =SUM(I110:I118) -> 0 | J119: =SUM(J110:J118) -> 0 | K119: 0 | L119: 0
A120: =A102 -> 1 | B120: =B102 -> 6 | C120: Итого за день: | G120: =G109+G119 -> 500 | H120: =H109+H119 -> 69.43 | I120: =I109+I119 -> 494 | J120: =J109+J119 -> 19.747 | K120: 15.574 | L120: 67.130
A121: 2 | B121: 1 | C121: Завтрак | D121: гор.блюдо | E121: Акт от 05.08.2021 | F121: Тефтели куриные "Лакомка" в соусе для запекания | G121: 90 | I121: 232 | J121: 9.768 | K121: 12.609 | L121: 19.917
D122: гор.блюдо | E122: №309/2015г Дели | F122: Макаронные изделия отварные | G122: 150 | I122: 212 | J122: 5.602 | K122: 5.068 | L122: 35.906
D123: гор.напиток | E123: ТТК от 2021г | F123: Чай с сахаром, лимоном | G123: 213 | I123: 34 | J123: 0.066 | K123: 0.010 | L123: 8.139
D124: хлеб | F124: Хлеб пшеничный | G124: 20 | I124: 47 | J124: 1.520 | K124: 0.160 | L124: 9.840
D125: фрукты | E125: №338 | F125: Плоды и ягоды свежие (яблоки) | G125: 100 | I125: 47 | J125: 0.400 | K125: 0.400 | L125: 9.800
D128: итого | G128: =SUM(G121:G127) -> 573 | H128: 69.43 | I128: =SUM(I121:I127) -> 572 | J128: =SUM(J121:J127) -> 17.356 | K128: =SUM(K121:K127) -> 18.247 | L128: =SUM(L121:L127) -> 83.602
A129: =A121 -> 2 | B129: =B121 -> 1 | C129: Обед | D129: закуска
D130: 1 блюдо
D131: 2 блюдо
D132: гарнир
D133: напиток
D134: хлеб бел.
D135: хлеб черн.
D138: итого | G138: =SUM(G129:G137) -> 0 | H138: =SUM(H129:H137) -> 0 | I138: =SUM(I129:I137) -> 0 | J138: =SUM(J129:J137) -> 0 | K138: 0 | L138: 0
A139: =A121 -> 2 | B139: =B121 -> 1 | C139: Итого за день: | G139: =G128+G138 -> 573 | H139: =H128+H138 -> 69.43 | I139: =I128+I138 -> 572 | J139: =J128+J138 -> 17.356 | K139: 18.247 | L139: 83.602
A140: 2 | B140: 2 | C140: Завтрак | D140: гор.блюдо | E140: ТТК 2020г | F140: Запеканка картофельная с мясом | G140: 200 | I140: 347 | J140: 14.537 | K140: 17.227 | L140: 33.571
D142: гор.напиток | E142: ТТК от 2021г Дели | F142: Напиток из урюка | G142: 200 | I142: 79 | J142: 0.800 | K142: 0.064 | L142: 18.460
D143: хлеб | F143: Хлеб ржано-пшеничный/ Хлеб пшеничный | G143: 40 | I143: 91 | J143: 2.520 | K143: 0.360 | L143: 18.840
D144: закуска | E144: №45/2015 Дели | F144: Салат из белокачанной капусты | G144: 60 | I144: 54 | J144: 0.961 | K144: 3.051 | L144: 5.513
D147: итого | G147: =SUM(G140:G146) -> 500 | H147: 69.43 | I147: =SUM(I140:I146) -> 571 | J147: =SUM(J140:J146) -> 18.818 | K147: 20.702 | L147: 76.384
A148: =A140 -> 2 | B148: =B140 -> 2 | C148: Обед | D148: закуска
D149: 1 блюдо
D150: 2 блюдо
D151: гарнир
D152: напиток
D153: хлеб бел.
D154: хлеб черн.
D157: итого | G157: =SUM(G148:G156) -> 0 | H157: =SUM(H148:H156) -> 0 | I157: =SUM(I148:I156) -> 0 | J157: =SUM(J148:J156) -> 0 | K157: 0 | L157: 0
A158: =A140 -> 2 | B158: =B140 -> 2 | C158: Итого за день: | G158: =G147+G157 -> 500 | H158: =H147+H157 -> 69.43 | I158: =I147+I157 -> 571 | J158: =J147+J157 -> 18.818 | K158: 20.702 | L158: 76.384
A159: 2 | B159: 3 | C159: Завтрак | D159: гор.блюдо | E159: ТТК 2015г | F159: Пельмени "Для умников и умниц" отварные с соус. для запекания | G159: 180 | I159: 400 | J159: 17.544 | K159: 19.086 | L159: 39.317
D160: гор.блюдо
D161: гор.напиток | E161: ТТК от 2021г | F161: Чай с сахаром | G161: 208 | I161: 32 | J161: 0.021 | K161: 0.005 | L161: 7.989
D162: хлеб | F162: Хлеб ржано-пшеничный | G162: 20 | I162: 44 | J162: 1.000 | K162: 0.200 | L162: 9.000
D163: фрукты | E163: №338 | F163: Плоды и ягоды свежие (яблоки) | G163: 100 | I163: 47 | J163: 0.400 | K163: 0.400 | L163: 9.800
D166: итого | G166: =SUM(G159:G165) -> 508 | H166: 69.43 | I166: =SUM(I159:I165) -> 523 | J166: =SUM(J159:J165) -> 18.965 | K166: =SUM(K159:K165) -> 19.691 | L166: 66.106
A167: =A159 -> 2 | B167: =B159 -> 3 | C167: Обед | D167: закуска
D168: 1 блюдо
D169: 2 блюдо
D170: гарнир
D171: напиток
D172: хлеб бел.
D173: хлеб черн.
D176: итого | G176: =SUM(G167:G175) -> 0 | H176: =SUM(H167:H175) -> 0 | I176: =SUM(I167:I175) -> 0 | J176: =SUM(J167:J175) -> 0 | K176: 0 | L176: 0
A177: =A159 -> 2 | B177: =B159 -> 3 | C177: Итого за день: | G177: =G166+G176 -> 508 | H177: =H166+H176 -> 69.43 | I177: =I166+I176 -> 523 | J177: =J166+J176 -> 18.965 | K177: 19.691 | L177: 66.106
A178: 2 | B178: 4 | C178: Завтрак | D178: гор.блюдо | E178: ТТК 2021г | F178: Котлеты из мяса птицы с овощами натуральными свежими (помидоры) | G178: 120 | I178: 191 | J178: 12.358 | K178: 9.795 | L178: 13.211
D179: гор.блюдо | E179: №38/2001г Сбор.Пермь | F179: Рис "Мозаика" (с овощами) | G179: 150 | I179: 247 | J179: 3.706 | K179: 10.613 | L179: 34.097
D180: гор.напиток | E180: ТТК от 2021г | F180: Чай с сахаром, лимоном | G180: 213 | I180: 34 | J180: 0.066 | K180: 0.010 | L180: 8.139
D181: хлеб | F181: Хлеб ржано-пшеничный | G181: 20 | I181: 44 | J181: 1.000 | K181: 0.200 | L181: 9.000
D185: итого | G185: =SUM(G178:G183) -> 503 | H185: 69.43 | I185: =SUM(I178:I183) -> 516 | J185: =SUM(J178:J183) -> 17.130 | K185: =SUM(K178:K183) -> 20.618 | L185: =SUM(L178:L183) -> 64.447
A186: =A178 -> 2 | B186: =B178 -> 4 | C186: Обед | D186: закуска
D187: 1 блюдо
D188: 2 блюдо
D189: гарнир
D190: напиток
D191: хлеб бел.
D192: хлеб черн.
D195: итого | G195: =SUM(G186:G194) -> 0 | H195: =SUM(H186:H194) -> 0 | I195: =SUM(I186:I194) -> 0 | J195: =SUM(J186:J194) -> 0 | K195: =SUM(K186:K194) -> 0 | L195: 0
A196: =A178 -> 2 | B196: =B178 -> 4 | C196: Итого за день: | G196: =G185+G195 -> 503 | H196: =H185+H195 -> 69.43 | I196: =I185+I195 -> 516 | J196: =J185+J195 -> 17.13 | K196: 20.618 | L196: 64.447
A197: 2 | B197: 5 | C197: Завтрак | D197: гор.блюдо | E197: ТТК от 2021г | F197: Гречка с фаршем и овощами | G197: 180 | I197: 369 | J197: 16.285 | K197: 14.605 | L197: 43.205
D199: гор.напиток | E199: ТТК от 2021г | F199: Чай с сахаром | G199: 208 | I199: 32 | J199: 0.021 | K199: 0.005 | L199: 7.989
D200: хлеб | F200: Хлеб пшеничный | G200: 20 | I200: 47 | J200: 1.520 | K200: 0.160 | L200: 9.840
D201: фрукты | E201: №338 | F201: Плоды и ягоды свежие (яблоки) | G201: 100 | I201: 47 | J201: 0.400 | K201: 0.400 | L201: 9.800
D204: итого | G204: =SUM(G197:G203) -> 508 | H204: 69.43 | I204: =SUM(I197:I203) -> 495 | J204: =SUM(J197:J203) -> 18.226 | K204: =SUM(K197:K203) -> 15.170 | L204: 70.834
A205: =A197 -> 2 | B205: =B197 -> 5 | C205: Обед | D205: закуска
D206: 1 блюдо
D207: 2 блюдо
D208: гарнир
D209: напиток
D210: хлеб бел.
D211: хлеб черн.
D214: итого | G214: =SUM(G205:G213) -> 0 | H214: =SUM(H205:H213) -> 0 | I214: =SUM(I205:I213) -> 0 | J214: =SUM(J205:J213) -> 0 | K214: 0 | L214: 0
A215: =A197 -> 2 | B215: =B197 -> 5 | C215: Итого за день: | G215: =G204+G214 -> 508 | H215: =H204+H214 -> 69.43 | I215: =I204+I214 -> 495 | J215: =J204+J214 -> 18.226 | K215: 15.17 | L215: 70.834
A216: 2 | B216: 6 | C216: Завтрак | D216: гор.блюдо | E216: №243/2015 Дели | F216: Сосиски отварные с соусом для запекания | G216: 90 | I216: 167 | J216: 9.916 | K216: 9.743 | L216: 9.958
D217: гор.блюдо | E217: ТТК от 2016г | F217: Спагетти отварные | G217: 150 | I217: 209 | J217: 5.601 | K217: 4.740 | L217: 35.899
D218: гор.напиток | E218: ТТК от 2021г | F218: Чай с сахаром, лимоном | G218: 213 | I218: 34 | J218: 0.066 | K218: 0.010 | L218: 8.139
D219: хлеб | F219: Хлеб ржано-пшеничный | G219: 20 | I219: 44 | J219: 1.000 | K219: 0.200 | L219: 9.000
D220: закуска | E220: ТТК 2013г. | F220: Салат из белокочанной капусты со свежими огурцами | G220: 60 | I220: 66 | J220: 0.752 | K220: 6.049 | L220: 1.978
D223: итого | G223: =SUM(G216:G222) -> 533 | H223: 69.43 | I223: =SUM(I216:I222) -> 520 | J223: =SUM(J216:J222) -> 17.335 | K223: =SUM(K216:K222) -> 20.742 | L223: =SUM(L216:L222) -> 64.974
A224: =A216 -> 2 | B224: 6 | C224: Обед | D224: закуска
D225: 1 блюдо
D226: 2 блюдо
D227: гарнир
D228: напиток
D229: хлеб бел.
D230: хлеб черн.
D233: итого | G233: =SUM(G224:G232) -> 0 | H233: =SUM(H224:H232) -> 0 | I233: =SUM(I224:I232) -> 0 | J233: =SUM(J224:J232) -> 0 | K233: 0 | L233: 0
A234: =A216 -> 2 | B234: =B216 -> 6 | C234: Итого за день: | G234: =G223+G233 -> 533 | H234: =H223+H233 -> 69.43 | I234: =I223+I233 -> 520 | J234: =J223+J233 -> 17.335 | K234: 20.742 | L234: 64.974
